Cogmind - Beta 15 @@@ ROGUE MODE // 2025.09.01 @ 00:13:10 Player: honbee Result: Destroyed by G-47 Trooper with Particle Gun Performance ------------- Evolutions (2) 1000 Regions Visited (7) 1400 Robots Destroyed (96) 480 Value Destroyed (2721) 2721 Prototype IDs (28) 560 Alien Tech Used (0) 0 Bonus (315) 315 TOTAL SCORE: 6476 Bonus ------- High Alert Combat Kills 15 Aligned with FarCom 300 Cogmind --------- Core Integrity 0/550 Matter 291/300 Energy 58/350 System Corruption 5% Temperature Cool (78) Movement Core (350) Ox6 Location -8/Materials Parts ------- > --- POWER (1) -------- (None) > --- PROPULSION (4) --- (None) > --- UTILITY (3) ------ Medium Storage Unit High-capacity Battery > --- WEAPON (3) ------- Heavy Particle Cannon (fused) > --- INVENTORY (10) --- Improved Heat Sink Large Storage Unit Improved Signal Interpreter Hardened Light Armor Plating Peak State ------------ > --- POWER ------------ Deuterium Engine > --- PROPULSION ------- Light Treads Light Treads Light Treads Light Treads > --- UTILITY ---------- Large Storage Unit High-capacity Battery Improved Propulsion Shielding > --- WEAPON ----------- Ion Cannon YOLO Cannon > --- INVENTORY -------- Deuterium Engine Light Nuclear Core Improved Heat Sink Medium Storage Unit Improved Signal Interpreter Hardened Light Armor Plating Hardlight Generator Shield Generator [Rating: 37] Favorites ----------- Power Micro Nuclear Core Engine Ion Engine Power Core Micro Nuclear Core Propulsion Light Treads Treads Light Treads Wheel Wheel Utility Small Storage Unit Device Shield Generator Storage Small Storage Unit Processor Melee Analysis Suite Protection Improved Propulsion Shielding Weapon Improved Medium Laser Energy Gun Improved Medium Laser Energy Cannon Plasma Cannon Ballistic Gun Assault Rifle Launcher Concussive RPG Special Weapon Welding Torch Slashing Weapon Scythe Build | -11 -10 -10 -9 -9 -9 -8 -8 ------- Run | Yrd Mat Min Mat Min Exi Min Mat Slots Evolved 4 | . . . 2 . . . 2 Power . | . . . . . . . . Propulsion 2 | . . . . . . . 2 Utility 1 | . . . 1 . . . . Weapon 1 | . . . 1 . . . . Parts Attached 78 | 6 1 11 25 3 2 . 30 Power 12 | 1 . 1 5 1 . . 4 Engine 9 | 1 . 1 5 . . . 2 Core 3 | . . . . 1 . . 2 Reactor . | . . . . . . . . Propulsion 20 | 2 1 6 3 1 . . 7 Treads 7 | . . . . . . . 7 Leg . | . . . . . . . . Wheel 13 | 2 1 6 3 1 . . . Hover . | . . . . . . . . Flight . | . . . . . . . . Utility 18 | 1 . 2 6 1 1 . 7 Device 12 | . . 2 5 1 . . 4 Storage 4 | 1 . . . . 1 . 2 Processor 1 | . . . 1 . . . . Hackware . | . . . . . . . . Protection 1 | . . . . . . . 1 Artifact . | . . . . . . . . Weapon 28 | 2 . 2 11 . 1 . 12 Energy Gun 13 | 2 . . 8 . . . 3 Energy Cannon 8 | . . . . . 1 . 7 Ballistic Gun 3 | . . 1 1 . . . 1 Ballistic Cannon . | . . . . . . . . Launcher 1 | . . . . . . . 1 Special Weapon 1 | . . 1 . . . . . Impact Weapon . | . . . . . . . . Slashing Weapon 2 | . . . 2 . . . . Piercing Weapon . | . . . . . . . . Special Melee Weapon . | . . . . . . . . Unidentified Prototypes 3 | . . 1 1 . . . 1 Parts Lost 35 | . 1 5 7 2 . . 20 Power 7 | . . 1 . 1 . . 5 Propulsion 12 | . 1 . 4 . . . 7 Utility 7 | . . 1 1 1 . . 4 Weapon 9 | . . 3 2 . . . 4 Highest Loss Streak 11 | . 1 2 3 1 . . 11 To Critical Strikes . | . . . . . . . . Average Backups 6 | 1 4 6 7 6 6 6 7 Power 1 | . 1 1 1 1 1 1 1 Propulsion 1 | . 2 4 3 2 2 2 . Utility 2 | . . . 2 2 2 2 4 Weapon . | . 1 . . . 1 1 1 Tool/Special . | . . . . . . . . Unused Backups 6 | . . . 2 . . . 4 Power . | . . . . . . . . Propulsion . | . . . . . . . . Utility 5 | . . . 1 . . . 4 Weapon 1 | . . . 1 . . . . Tool/Special . | . . . . . . . . Average Slot Usage (%) 89 | . 81 86 95 94 88 88 89 Engine 5 | . 14 12 10 7 . . 4 Core 4 | . . . . 3 11 11 3 Treads 9 | . . . . . . . 27 Wheel 13 | . 24 28 21 18 11 11 3 Device 9 | . . 6 19 9 11 11 7 Storage 15 | . 14 14 11 11 12 22 18 Processor 2 | . . . 1 11 9 . . Energy Gun 19 | . 28 16 21 22 22 22 16 Energy Cannon 4 | . . . . . 1 11 7 Ballistic Gun 1 | . . 6 6 . . . . Slashing Weapon 2 | . . . 1 11 9 . . Peak Build Rating 37 | 6 6 17 20 28 29 28 37 Average Rating 22 | 4 5 8 13 21 27 27 30 On Entrance 15 | . 6 6 7 20 28 28 27 Naked Turns . | . . . . . . . . Heaviest Build 62 | 14 14 15 22 21 30 30 62 Greatest Support 80 | 26 26 26 26 28 28 28 80 Greatest Overweight (x) 8 | . 1 . 2 6 1 1 8 Average Overweight (x) . | . . . . . . 1 . Largest Inventory Capacity 15 | 8 8 8 8 8 8 8 15 Average Capacity 9 | 6 8 8 8 8 8 8 11 Most Carried 12 | 4 4 8 8 8 8 8 12 Average Carried 7 | 1 4 6 7 7 7 8 8 Final Capacity 10 | 8 8 8 8 8 8 8 10 Final Carried 8 | 4 4 8 8 8 8 8 4 Class Distribution -------------------- 40% | Mutant 32% | Skirmisher 16% | Scavenger-Mutant 4% | Gunner Dominant Class ---------------- Mutant | -10/Materials Mutant | -10/Mines Gunner | -9/Materials Mutant | -9/Mines Mutant | -9/Exiles Skirmisher | -8/Mines Skirmisher | -8/Materials Resources | -11 -10 -10 -9 -9 -9 -8 -8 ----------- Run | Yrd Mat Min Mat Min Exi Min Mat Matter Collected 1328 | 252 3 215 395 17 . 91 355 Remotely . | . . . . . . . . Salvage Created 3714 | . 31 252 938 252 . 95 2146 Parts 159 | . 6 6 45 11 . 2 89 Haulers Intercepted 7 | . . . 2 . . . 5 Recyclers Shooed 2 | . . 1 1 . . . . Parts Field Recycled . | . . . . . . . . Retrieved Matter . | . . . . . . . . Parts Self-Destructed . | . . . . . . . . Prevented . | . . . . . . . . Kills | -11 -10 -10 -9 -9 -9 -8 -8 ------- Run | Yrd Mat Min Mat Min Exi Min Mat Combat Hostiles Destroyed 79 | . 3 13 21 4 . 4 34 Melee 1 | . . . . 1 . . . Guns 62 | . 1 12 21 3 . 1 24 Cannons 9 | . . . . . . 2 7 AOE 4 | . 2 . . . . . 2 Classes Destroyed 17 | . 2 2 8 1 . 1 3 Worker 3 | . . . 1 . . . 2 Builder 2 | . . . 1 . . . 1 Tunneler 3 | . . . . 2 . . 1 Hauler 7 | . . . 2 . . . 5 Recycler 4 | . . 1 1 1 . . 1 Mechanic 1 | . . . 1 . . . . Operator 2 | . 1 . . . . . 1 Watcher 5 | . . . 2 . . . 3 Swarmer 19 | . 3 3 4 2 . 3 4 Grunt 29 | . . . 11 2 . . 16 Brawler 1 | . . . . . . . 1 Duelist 3 | . . . 2 . . . 1 Sentry 12 | . . . 4 . . . 8 Specialist 3 | . . . . . . . 3 Hunter 1 | . . . . . . 1 . Heavy 1 | . . . . . . . 1 Assembled 10 | . . 10 . . . . . Best Kill Streak 8 | . 4 3 5 4 . 3 8 Combat Bots Only 5 | . 3 3 5 2 . 3 5 Max Kills in Single Turn 2 | . 2 1 2 1 . 1 2 Gunslinging 1 | . . . 1 . . . 1 Exploded 2 | . 2 . . . . . 1 Melee 1 | . . . . 1 . . . Uniques/NPCs Destroyed . | . . . . . . . . Combat | -11 -10 -10 -9 -9 -9 -8 -8 -------- Run | Yrd Mat Min Mat Min Exi Min Mat Hostile Shots Fired 523 | . 6 48 106 20 . 10 333 Missed 150 | . . 17 31 6 . 2 94 Hits 373 | . 6 31 75 14 . 8 239 Melee 17 | . . 7 4 . . . 6 Projectile 356 | . 6 24 71 14 . 8 233 Critical Strikes 13 | . . 1 2 . . 1 9 Actively Blocked 1 | . . . . . . . 1 Part Disruptions 4 | . . 4 . . . . . Damage Taken 5041 | . 88 501 1021 174 . 101 3156 Core 932 | . 14 138 169 48 . 10 553 Absorbed by Shields 524 | . . . . 6 . 26 492 Redirected to Shielding 105 | . . . . . . . 105 Core Remaining (%) 60 | 100 . 39 . . . 43 . Volleys Fired 290 | . 5 62 61 9 . 6 147 Largest 3 | . 2 2 3 2 . 3 3 Hottest 230 | . 100 100 186 112 . 192 230 Shots Fired 574 | . 10 86 153 18 . 20 287 Gun 497 | . 10 85 153 18 . 13 218 Cannon 75 | . . . . . . 7 68 Launcher 1 | . . . . . . . 1 Special 1 | . . 1 . . . . . Kinetic 80 | . . 34 33 . . . 13 Thermal 480 | . 10 52 117 18 . 20 263 Explosive 1 | . . . . . . . 1 Electromagnetic 13 | . . . 3 . . . 10 Robot Hit Streak 11 | . 4 7 11 7 . 5 9 Robot Miss Streak 7 | . 2 7 7 2 . 1 5 Penetration Max . | . . . . . . . . Secondary Targets 9 | . . . 5 . . . 4 Max Gunslinging Chain 1 | . . . 1 . . . 1 Shots Hit Robots 368 | . 6 35 120 15 . 13 179 Core Hits 212 | . 5 22 104 8 . 3 70 Critical Kills . | . . . . . . . . Critical Parts Destroyed . | . . . . . . . . Critical Strikes 18 | . . 1 5 1 . 1 10 Burn 17 | . . 1 5 . . 1 10 Sever 1 | . . . . 1 . . . Melee Attacks 7 | . . . 2 5 . . . Impact . | . . . . . . . . Slashing 7 | . . . 2 5 . . . Piercing . | . . . . . . . . Sneak Attacks 5 | . . . 2 3 . . . Combat Hostiles . | . . . . . . . . Follow-up Attacks . | . . . . . . . . Damage Inflicted 8093 | . 352 473 2064 435 . 265 4504 Guns 5475 | . 75 449 1844 171 . 134 2802 Cannons 1435 | . . . . . . 103 1332 Explosions 654 | . 277 . 33 . . . 344 Melee 398 | . . . 134 264 . . . Ramming 131 | . . 24 53 . . 28 26 Kinetic 625 | . . 173 278 . . . 174 Thermal 6290 | . 75 276 1468 171 . 237 4063 Explosive 307 | . 277 . . . . . 30 Electromagnetic 333 | . . . 131 . . . 202 Impact 9 | . . . . . . . 9 Slashing 398 | . . . 134 264 . . . Piercing . | . . . . . . . . Highest Corruption 5 | . . 3 . 1 1 1 5 Average Corruption 1 | . . 3 . 1 1 1 2 Corruption Purged . | . . . . . . . . Corruption Blocked . | . . . . . . . . Effects 37 | . . 9 . 2 7 9 10 Message Errors 9 | . . 2 . 1 1 1 4 Matter Fused 9 | . . 2 . . 3 4 . Heat Flow Errors 4 | . . 3 . . . . 1 Energy Discharges 3 | . . . . . 3 . . Parts Fused 2 | . . 1 . . . . 1 Data Loss (minor) 5 | . . . . 1 . 2 2 Data Loss (major) 1 | . . . . . . . 1 Misfires 3 | . . . . . . 2 1 Alerts 1 | . . 1 . . . . . Overload Shots . | . . . . . . . . Overflow Damage 35 | . 18 1 . . . . 16 Projectiles 11 | . . . . . . . 11 Explosions 23 | . 18 . . . . . 5 Melee 1 | . . 1 . . . . . Knockbacks 1 | . . . 1 . . . . Impact 1 | . . . 1 . . . . Kinetic . | . . . . . . . . Secondary . | . . . . . . . . Self-Inflicted Damage 234 | . 43 9 79 . . 14 89 Shots 4 | . 1 . 2 . . . 1 Rammed 29 | . 1 9 9 . . 5 5 Targets Rammed 29 | . 1 9 9 . . 5 5 Kicked . | . . . . . . . . Crushed . | . . . . . . . . Highest Temperature 410 | . 78 200 156 84 . 366 410 Average Temperature 102 | . 32 68 61 30 . 167 119 Received Heat Transfer 1274 | . . 280 252 78 . . 664 Effects 12 | . . . . . . 1 11 Energy Bleed 3 | . . . . . . . 3 Interference 2 | . . . . . . . 2 Short Circuit 1 | . . . . . . . 1 Damage (minor) 2 | . . . . . . 1 1 Damage (major) 4 | . . . . . . . 4 Siege Activations . | . . . . . . . . Martial Activations . | . . . . . . . . Shielding Activations . | . . . . . . . . Robots Disrupted . | . . . . . . . . Combat Hostiles . | . . . . . . . . Robots Corrupted 1 | . . 1 . . . . . Combat Hostiles 1 | . . 1 . . . . . Parts Fried 1 | . . . 1 . . . . Impact Corruptions 1 | . . 1 . . . . . Robots Melted 2 | . . . . . . 1 1 Combat Hostiles 2 | . . . . . . 1 1 Parts Melted 18 | . . . 1 . . 2 15 Heat Transferred 12040 | . 222 888 2670 370 . 570 7320 Parts Sabotaged . | . . . . . . . . Parts Stolen . | . . . . . . . . Parts Stripped . | . . . . . . . . Power Chain Reactions 2 | . . . 1 . . . 1 Alert | -11 -10 -10 -9 -9 -9 -8 -8 ------- Run | Yrd Mat Min Mat Min Exi Min Mat Maximum Alert Level 2 | . . . 1 . . . 2 Low Security (%) 76 | 100 100 100 94 100 . 100 41 Level 1 22 | . . . 5 . . . 57 Level 2 . | . . . . . . . 1 Level 3 . | . . . . . . . . Level 4 . | . . . . . . . . Level 5 . | . . . . . . . . High Security . | . . . . . . . . Max Security . | . . . . . . . . Peak Influence 420 | . 121 99 251 183 . 86 420 Initial 93 | . . 44 . 93 . . . Average 103 | . 41 15 120 42 . 12 196 Influence Increases 2318 | . 169 90 667 155 . 118 1119 Destroy 0b10 Robot/C 1380 | . 60 60 420 80 . 80 680 Destroy 0b10 Robot/NC 135 | . 5 5 40 15 . . 70 Destroy Leader 364 | . 10 10 108 20 . 20 196 Trap Triggered on 0b10 20 | . . . . 10 . . 10 Successful Hack 50 | . 23 . 14 . . . 13 Disable Machine 120 | . 15 . 30 15 . 15 45 Destroy Structure 99 | . 26 . 10 . . 3 60 Lose Combat Pursuer 150 | . 30 15 45 15 . . 45 Influence Decreases 1935 | . 55 204 428 394 . 118 736 Entered New Map 216 | . . 70 . 146 . . . Time Decay 1419 | . 45 134 358 228 . 118 536 Lost Part 300 | . 10 . 70 20 . . 200 Squads Dispatched 16 | . 1 . 3 . . . 12 Investigation 3 | . . . . . . . 3 Extermination . | . . . . . . . . Reinforcement 10 | . 1 . 3 . . . 6 Assault . | . . . . . . . . Garrison 3 | . . . . . . . 3 Intercept . | . . . . . . . . Searches Triggered . | . . . . . . . . Construction Impeded 1 | . . . 1 . . . . Haulers Reinforced . | . . . . . . . . Active Scanning Responses . | . . . . . . . . Cargo Convoy Interrupts . | . . . . . . . . Stealth | -11 -10 -10 -9 -9 -9 -8 -8 --------- Run | Yrd Mat Min Mat Min Exi Min Mat Distress Signals 11 | . . . 2 . . . 9 Communications Jammed . | . . . . . . . . Distress Signals . | . . . . . . . . Times Spotted 126 | . 4 15 38 6 . 4 59 Peak Tracking Total 7 | . 3 3 6 3 . 3 7 Tactical Retreats 10 | . 1 2 3 1 . . 3 Traps | -11 -10 -10 -9 -9 -9 -8 -8 ------- Run | Yrd Mat Min Mat Min Exi Min Mat Traps Triggered 5 | . . . 1 . . . 4 Indirectly . | . . . . . . . . Trap Hack Attempts . | . . . . . . . . Triggered . | . . . . . . . . Disarmed . | . . . . . . . . Reprogrammed . | . . . . . . . . Reused 2 | . . . . 1 . . 1 Traps Extracted . | . . . . . . . . Installed 2 | . . . . 1 . . 1 Triggered 2 | . . . . 1 . . 1 Most Traps Carried 1 | . . . . 1 1 1 1 Machines | -11 -10 -10 -9 -9 -9 -8 -8 ---------- Run | Yrd Mat Min Mat Min Exi Min Mat Machines Disabled 8 | . 1 . 2 1 . 1 3 Max in Single Turn 2 | . 1 . 2 1 . 1 2 Machines Repaired . | . . . . . . . . Machines Dismantled . | . . . . . . . . Machines Sabotaged . | . . . . . . . . Overloaded Fab Kills . | . . . . . . . . Hacking | -11 -10 -10 -9 -9 -9 -8 -8 --------- Run | Yrd Mat Min Mat Min Exi Min Mat Machines Accessed 19 | . 3 . 5 1 2 . 8 Terminals 13 | . 3 . 4 . . . 6 Fabricators . | . . . . . . . . Repair Stations 1 | . . . . . . . 1 Recycling Units 1 | . . . 1 . . . . Scanalyzers 1 | . . . . . . . 1 Garrison Access . | . . . . . . . . Total Hacks 83 | . 12 . 17 1 24 . 29 Successful 53 | . 7 . 8 1 24 . 13 Failed 30 | . 5 . 9 . . . 16 Catastrophic 3 | . 1 . . . . . 2 Database Lockouts . | . . . . . . . . Manual 40 | . 8 . 7 1 1 . 23 Terminals 51 | . 12 . 13 . . . 26 Fabricators . | . . . . . . . . Repair Stations 1 | . . . . . . . 1 Recycling Units 4 | . . . 4 . . . . Scanalyzers 2 | . . . . . . . 2 Garrison Access . | . . . . . . . . Terminal Hacks 42 | . 6 . 5 1 24 . 6 Record 26 | . 1 . . . 23 . 2 Robot Analysis 1 | . 1 . . . . . . Prototype ID Bank 1 | . . . 1 . . . . Open Door 1 | . . . . 1 . . . Level Access Points 2 | . 1 . 1 . . . . Branch Access Points 1 | . . . . . . . 1 Emergency Access Points 1 | . . . 1 . . . . Terminal Index 1 | . . . . . . . 1 Recall Reinforcements 1 | . . . . . . . 1 Hauler Manifests 1 | . . . 1 . . . . Zone Layout 5 | . 3 . 1 . . . 1 Proto ID Catalog 1 | . . . . . 1 . . Fabricator Hacks . | . . . . . . . . Repair Station Hacks . | . . . . . . . . Recycling Unit Hacks 1 | . . . 1 . . . . Retrieve Components 1 | . . . 1 . . . . Scanalyzer 2 | . . . . . . . 2 Insert Component 1 | . . . . . . . 1 Analyze 1 | . . . . . . . 1 Garrison Access Hacks . | . . . . . . . . Unauthorized Hacks 8 | . 1 . 2 . . . 5 Terminals 7 | . 1 . 1 . . . 5 Track 1 | . . . . . . . 1 Botnet 6 | . 1 . 1 . . . 4 Fabricators . | . . . . . . . . Repair Stations . | . . . . . . . . Recycling Units 1 | . . . 1 . . . . Reject 1 | . . . 1 . . . . Scanalyzers . | . . . . . . . . Garrison Access . | . . . . . . . . Data Cores Recovered . | . . . . . . . . Used . | . . . . . . . . Hacking Detections 16 | . 3 . 5 . . . 8 Full Trace Events 6 | . 2 . . . . . 4 Feedback Events . | . . . . . . . . Feedback Blocked . | . . . . . . . . Robot Schematics Acquired . | . . . . . . . . Robots Built . | . . . . . . . . Authchips . | . . . . . . . . Time . | . . . . . . . . Total Robot Build Rating . | . . . . . . . . Part Schematics Acquired 1 | . . . . . . . 1 Parts Built . | . . . . . . . . Authchips . | . . . . . . . . Time . | . . . . . . . . Total Part Build Rating . | . . . . . . . . Parts Repaired . | . . . . . . . . Time . | . . . . . . . . Parts Recycled . | . . . . . . . . Recycled Matter . | . . . . . . . . Retrieved Matter . | . . . . . . . . Retrieved Components 9 | . . . 9 . . . . Parts Scanalyzed 1 | . . . . . . . 1 Part Schematics Acquired 1 | . . . . . . . 1 Parts Damaged . | . . . . . . . . Bothacking | -11 -10 -10 -9 -9 -9 -8 -8 ------------ Run | Yrd Mat Min Mat Min Exi Min Mat Used RIF Installer . | . . . . . . . . Robots Hacked . | . . . . . . . . Non-combat . | . . . . . . . . Combat . | . . . . . . . . Robot Hacks Applied . | . . . . . . . . Relay Couplers Released . | . . . . . . . . Fabnet Peak Effective % . | . . . . . . . . Robots Rewired . | . . . . . . . . Allies Hacked . | . . . . . . . . Hacks Repelled . | . . . . . . . . Allies | -11 -10 -10 -9 -9 -9 -8 -8 -------- Run | Yrd Mat Min Mat Min Exi Min Mat Total Allies 2 | . . . . 2 . . . Largest Group 2 | . . . . 2 2 . . Highest-Rated Group 50 | . . . . 50 50 . . Highest-Rated Ally 31 | . . . . 31 31 . . Total Orders . | . . . . . . . . Ally Attacks . | . . . . . . . . Total Damage . | . . . . . . . . Kills . | . . . . . . . . Allies Corrupted . | . . . . . . . . Allies Melted . | . . . . . . . . Intel | -11 -10 -10 -9 -9 -9 -8 -8 ------- Run | Yrd Mat Min Mat Min Exi Min Mat Active Infowar (turns) 643 | . . 466 177 . . . . Sensors 43 | . . 43 . . . . . Terrain 600 | . . 423 177 . . . . Robot Analysis Total 1 | . 1 . . . . . . Derelict Logs Recovered 2 | . . 1 . 1 . . . Drone Launches . | . . . . . . . . Drone Recoveries . | . . . . . . . . Exploration | -11 -10 -10 -9 -9 -9 -8 -8 ------------- Run | Yrd Mat Min Mat Min Exi Min Mat Turns Passed 7147 | 63 137 1040 847 1084 607 845 2524 Spaces Moved 4420 | 51 128 713 592 712 584 708 932 Core 16 | 6 . . . 3 . . 7 Treads 577 | . . . . . . . 577 Legs . | . . . . . . . . Wheels 3827 | 45 128 713 592 709 584 708 348 Hover . | . . . . . . . . Flight . | . . . . . . . . Fastest Speed 50 | 50 90 80 80 85 100 115 100 Average Speed 109 | 85 91 82 88 90 102 115 164 Slowest Speed 450 | 100 95 90 110 350 115 115 450 Overloaded Moves . | . . . . . . . . Propulsion Burnouts . | . . . . . . . . Robots Hopped . | . . . . . . . . Potential Cave-ins 2 | . . . . . . . 2 Cave-ins Triggered . | . . . . . . . . Exploration Rate (%) 66 | 3 34 92 51 86 90 99 73 Regions Visited 7 Branch Regions 4 Pre-discovered Areas 3 | . . 2 . . 1 . . Known Exits Taken 2 | . . 1 . . . 1 . Unknown Exits Taken 5 | 1 1 . 1 1 1 . . Scrap Searched 3 | . . 1 . 2 . . . Spaces Dug . | . . . . . . . . Terrain Destroyed 99 | . 24 . 5 . . 3 67 Melee . | . . . . . . . . Projectile 15 | . . . . . . 3 12 AOE 84 | . 24 . 5 . . . 55 Terrain Rammed . | . . . . . . . . Walls Destroyed . | . . . . . . . . Machines Disabled . | . . . . . . . . Actions | -11 -10 -10 -9 -9 -9 -8 -8 --------- Run | Yrd Mat Min Mat Min Exi Min Mat Total 6171 | 67 137 1076 792 1124 592 724 1659 Wait 1270 | 7 3 281 74 387 3 5 510 Move 4413 | 50 127 712 591 711 583 707 932 Hop . | . . . . . . . . Pick Up 31 | 4 . . 7 3 2 . 15 Fast Attach 27 | 6 1 3 9 1 . . 7 Attach 26 | . . 1 8 2 . . 15 Detach 1 | . . . 1 . . . . Swap 43 | . . 7 14 1 2 1 18 Drop 32 | . . 1 16 4 2 . 9 Fire 290 | . 5 62 61 9 . 6 147 Melee 7 | . . . 2 5 . . . Ram 26 | . 1 9 9 . . 5 2 Kick . | . . . . . . . . Crush 3 | . . . . . . . 3 Escape Stasis . | . . . . . . . . Rewire . | . . . . . . . . Trap 2 | . . . . 1 . . 1 Miscellaneous . | . . . . . . . . Route ------- -11/Scrapyard -10/Materials (discovered 4 exits: Mat x3 / [*Min]) -10/Mines -9/Materials (discovered 4 exits: *Mat x3 / *Min) -9/Mines (discovered 3 exits: *Mat x2 / *Exi) -9/Exiles -8/Mines (discovered 2 exits: *Mat x2) -8/Materials (discovered 2 exits: [*Fac x2]) History --------- Turn | Location | Event 46 | -11/Scrapyard | Discovered new exit (range 16) 64 | -11/Scrapyard | Entered Materials 185 | -10/Materials | Discovered new exit (range 15) 185 | -10/Materials | Identified exit to Materials 201 | -10/Materials | Entered Mines 247 | -10/Mines | Discovered exit to Materials (range 10) 280 | -10/Mines | Assembled infested the area 308 | -10/Mines | Build established: Mutant 745 | -10/Mines | Found a damaged Exp. Sensor Array with a note attached 746 | -10/Mines | Found Prototype Device 746 | -10/Mines | Identified Exp. Sensor Array 953 | -10/Mines | Learned location of Mines (-9) 1038 | -10/Mines | Core integrity fell below 50% 1100 | -10/Mines | Build established: Scavenger-Mutant 1160 | -10/Mines | Learned location of Storage (-9) 1241 | -10/Mines | Entered Materials 1241 | -9/Materials | Evolved 2 slots: Utility x1, Weapon x1 1453 | -9/Materials | Lost 3 parts (2n1u) 1773 | -9/Materials | Discovered new exit (range 8) 1797 | -9/Materials | Identified exit to Materials 2088 | -9/Materials | Entered Mines 2098 | -9/Mines | Met a Derelict bent on vengeance 2102 | -9/Mines | Core integrity fell below 50% 2126 | -9/Mines | Found a hidden stash of uninstalled traps 2250 | -9/Mines | Build established: Mutant 2289 | -9/Mines | Discovered exit to Materials (range 15) 2548 | -9/Mines | Met a Derelict who couldn't figure out how to use a Trap Extractor 3008 | -9/Mines | Discovered exit to Materials (range 12) 3037 | -9/Mines | Deemed a non-threat by the Exiles lab entrance 3037 | -9/Mines | Discovered new exit (range 5) 3172 | -9/Mines | Entered Exiles 3172 | -9/Exiles | Accompanied by 2 allies 3199 | -9/Exiles | Met 8R-AWN 3202 | -9/Exiles | Led the pair of lost Derelicts to a safe place 3217 | -9/Exiles | Met EX-HEX 3263 | -9/Exiles | Met EX-DEC 3308 | -9/Exiles | Visited The Gauntlet 3460 | -9/Exiles | Learned location of Zion (-7) 3488 | -9/Exiles | Discovered new exit (range 14) 3574 | -9/Exiles | Met EX-BIN 3585 | -9/Exiles | Aligned with FarCom system 3586 | -9/Exiles | Given EX-Vault access code 3621 | -9/Exiles | Opened EX-Vault 3662 | -9/Exiles | Exiles lab attacked by MAIN.C 3672 | -9/Exiles | Found YOLO Cannon 3779 | -9/Exiles | Left Exiles lab with YOLO Cannon 3779 | -9/Exiles | Entered Mines 3818 | -8/Mines | Discovered exit to Materials (range 12) 4082 | -8/Mines | Build established: Skirmisher 4310 | -8/Mines | Discovered exit to Materials (range 12) 4624 | -8/Mines | Entered Materials 4624 | -8/Materials | Evolved 2 slots: Propulsion x2 5061 | -8/Materials | Garrison activated, responded to threat 5180 | -8/Materials | Discovered new exit (range 3) 5566 | -8/Materials | Lost 5 parts (2p2n1u) 5917 | -8/Materials | Build established: Scavenger-Mutant 6266 | -8/Materials | Discovered new exit (range 15) 6843 | -8/Materials | Build established: Skirmisher 7068 | -8/Materials | Core integrity fell below 50% 7140 | -8/Materials | Core integrity fell below 20% 7148 | -8/Materials | Destroyed by G-47 Trooper with Particle Gun Last Messages --------------- U-05 Engineer lays Concrete. U-05 Engineer destroyed. Ion Cannon destroyed. Lgt. Treads destroyed. Deuterium Engine destroyed. Atomic Centrifuge disabled. System corrupted: Hvy. Particle Cannon fused. X-57 Shotgunner destroyed. Lgt. Nuclear Core destroyed. Hardlight Generator destroyed. K-01 Serf collects debris. Connecting with Terminal... ALERT: Suspicious activity at Terminal M008. Dispatching Investigation squad. R-06 Scavenger collects Cooling System. K-01 Serf destroyed. K-01 Serf collects debris. R-06 Scavenger collects Lgt. Ion Engine. K-01 Serf collects debris. K-01 Serf destroyed. Map ----- +----------------------------------------------------+ | ?????????????????????????????????????????????? | | ?????????????????????????????????????????????? | | ?????????????????????????????????????????????? | | ?????????????????????????????????????????????? | | ?????????????????????????????????????????????? | | ?????????????????????????????????????????????? | | ?????????????????????????????????????????????? | | ?????????????????????????????????????????????? | | ?????????????????????????????????????????????? | | ?????????????????????????????????????????????? | | ?????????????????????????????????????????????? | | ?????????????????????????????????????????????? | | ?????????????????????????????????????????????? | | ?????????????????????????????????????????????? | | ??????????????????????????????????????????###+ | | ????????????????????????????????????####### | | ????????????????????????????????????? | | ??????????????????????h???????????????? [ | | ????????????????????????????????????????? % | | ??????????????????????????????????????????# !! | | ??????????????????????????????????????????##%! | | ???????????????????????????????????????????#!! | | ???????????????????????????????????????????# | | ??????????????????######??w????????????????# | | ??????????????????# T #???????????????????# | | ??????????????????# @ #???????????????????# | | ??????????????????# #???????????????????# | | ??????????????????# #???????????????????### | | ??????????????????# #?????????????????????# | | ??????????????????# #?????????????????????# | | ??????????????##### #?????????????????????# | | ?????????????## ; #?????????????????????# | | ???####"######"""" g##????????????????????# | | ???# # g #????????????????????# | | ???#"" # rg ???????????????# | | ???#"""% !# x #??????????????# | | ???#"""% %# % =%!%* !#??????????????# | | ?# " # =%! %= ## #??????????????# | | ?###""" * " #?######??????????????# | | ???#""" # #?????????????????????# | | ???#""" # " ###?????????????????????# | | ???# # """ #???????????????????????# | | ##########+## """ #???????????????????????# | | # T = + #???????????????????????# | | # # #???????????????????????# | | # # #########???????????????# | | # ! # ## #???????????????# | | # # ## #???????????????# | | # !!! + ## ###?????????????# | | # !! # !! #" ] # #?????????????# | +----------------------------------------------------+ Best States ------------- Heat Dissipation 60 Coolant Potential 50 Energy Generation 15 Energy Capacity 525 Matter Stores 300 Matter Capacity 300 Sight Range 16 Robot Scan Range 20 Terrain Scan Range 16 Terrain Scan Density 10 Propulsion Shielding 66 Evasion (%) 50 Melee Accuracy 5 Recoil Reduction 4 Item Schematics ----------------- Imp. Heat Sink | -8/Materials | Scanalyzed Robot Schematics ------------------ None Fabricated ------------ Nothing Repaired ---------- Nothing Alien Tech Used ----------------- None Achievements -------------- None Challenges ------------ None Game ------ Seed MinesnifferGatlingCapacitor Manual? 0 Play Time 01:18:16 Cumulative 31.7 hours Start 2025.08.31 @ 22:47:13 End 2025.09.01 @ 00:13:10 Sessions 1 Manual Loads 0 Difficulty Rogue Special Mode None Game No. 27 Rogue 27 Adventurer 0 Explorer 0 Win Type - Total 0 Types 0/0/0/0/0/0/0/0/0/0 Lore% 21 Gallery% 26 Achievement% 24 Wizard Run 0 Options --------- Layout 0 ASCII 0 Keyboard 0 Movement Mouse Keybinds 0 Fullscreen 1 Font 24/X11 Map View 38x25 Zoom Use 83% Tactical HUD 0 Map Filters NONE Filters NONE Steam 1 RUN: 5f539b87-9649-4468-b249-8be70856301c